fUSD/lending_fUSD_20250217
["ID","MTS","AMOUNT","RATE_DAILY","PERIOD"]
[353319375,1739758259388,-798.89,0.00014109,2]
[353319376,1739758259398,-500.0,0.00014109,2]
[353319377,1739758259407,-500.0,0.00014109,2]
[353319378,1739758259416,-581.06,0.00014109,2]
[353319379,1739758259425,-202.66538642,0.00014109,2]
[353319380,1739758259435,-500.0,0.00014109,2]
[353319381,1739758259444,-500.0,0.00014109,2]
[353319382,1739758259453,-285.14158009,0.00014109,2]
[353319383,1739758259463,-500.0,0.00014109,2]
[353319384,1739758259472,-663.28,0.00014109,2]
[353319385,1739758259485,-500.0,0.00014109,2]
[353319386,1739758259494,-500.0,0.00014109,2]
[353319387,1739758259504,-500.0,0.00014109,2]
[353319388,1739758259512,-151.0,0.00014109,2]
[353319389,1739758259635,-500.0,0.00014109,2]
[353319390,1739758259658,-515.63928644,0.00014109,2]
[353319391,1739758259668,-783.36,0.00014109,2]
[353319392,1739758259677,-500.0,0.00014109,2]
[353319393,1739758259687,-500.0,0.00014109,2]
[353319394,1739758259696,-768.72,0.00014109,2]
[353319395,1739758259706,-500.0,0.00014109,2]
[353319396,1739758259716,-500.0,0.00014109,2]
[353319397,1739758259725,-500.0,0.00014109,2]
[353319398,1739758259734,-500.0,0.00014109,2]
[353319399,1739758259743,-500.0,0.00014109,2]
[353319400,1739758259752,-500.0,0.00014109,2]
[353319401,1739758259762,-500.0,0.00014109,2]
[353319402,1739758259771,-198.35069,0.00014109,2]
[353319403,1739758259780,-500.0,0.00014109,2]
[353319404,1739758259789,-500.0,0.00014109,2]
[353319405,1739758259799,-198.35069,0.00014109,2]
[353319406,1739758259808,-500.0,0.00014109,2]
[353319407,1739758259818,-500.0,0.00014109,2]
[353319408,1739758259827,-622.66,0.00014109,2]
[353319409,1739758259836,-500.0,0.00014109,2]
[353319410,1739758259845,-500.0,0.00014109,2]
[353319411,1739758259855,-484.62762416,0.00014109,2]
[353319412,1739758259864,-500.0,0.00014109,2]
[353319413,1739758259873,-509.66,0.00014109,2]
[353319414,1739758259883,-500.0,0.00014109,2]
[353319415,1739758259892,-500.0,0.00014109,2]
[353319416,1739758259903,-151.0,0.00014109,2]
[353319417,1739758259911,-500.0,0.00014109,2]
[353319418,1739758259921,-500.0,0.00014109,2]
[353319419,1739758259930,-500.0,0.00014109,2]
[353319420,1739758259939,-620.1,0.00014109,2]
[353319421,1739758259948,-150.0,0.0001411,2]
[353319422,1739758259958,-150.0,0.00014113,2]
[353319423,1739758259967,-150.0,0.00014116,2]
[353319424,1739758259976,-176.749,0.00014124,2]
[353319425,1739758259986,-150.0,0.00014133,2]
[353319426,1739758259996,-2372.06,0.00014136,2]
[353319427,1739758260005,-150.0,0.00014137,2]
[353319428,1739758260015,-1000.0,0.00014143,2]
[353319429,1739758260024,-150.0,0.00014155,2]
[353319430,1739758260034,-150.0,0.00014169,2]
[353319431,1739758260044,-150.0,0.00014179,2]
[353319432,1739758260053,-150.0,0.00014181,2]
[353319433,1739758260063,-150.0,0.00014186,2]
[353319434,1739758260072,-150.0,0.00014188,2]
[353319435,1739758260082,-150.0,0.00014189,2]
[353319436,1739758260091,-1000.0,0.0001419,2]
[353319437,1739758260100,-894.397479,0.00014191,2]
[353319438,1739758260109,-894.397479,0.00014191,2]
[353319439,1739758260118,-151.0,0.00014191,2]
[353319440,1739758260127,-586.38,0.00014191,2]
[353319441,1739758260136,-500.0,0.00014191,2]
[353319442,1739758260145,-500.0,0.00014191,2]
[353319443,1739758260154,-500.0,0.00014191,2]
[353319444,1739758260163,-500.0,0.00014191,2]
[353319445,1739758260171,-500.0,0.00014191,2]
[353319446,1739758260180,-500.0,0.00014191,2]
[353319447,1739758260189,-500.0,0.00014191,2]
[353319448,1739758260199,-884.831135,0.00014191,2]
[353319449,1739758260208,-884.831131,0.00014191,2]
[353319450,1739758260218,-250.20316763,0.00014191,2]
[353319451,1739758260227,-553.65,0.00014191,2]
[353319452,1739758260237,-500.0,0.00014191,2]
[353319453,1739758260247,-500.0,0.00014191,2]
[353319454,1739758260256,-500.0,0.00014191,2]
[353319455,1739758260265,-500.0,0.00014191,2]
[353319456,1739758260275,-500.0,0.00014191,2]
[353319457,1739758260285,-500.0,0.00014191,2]
[353319458,1739758260295,-500.0,0.00014191,2]
[353319459,1739758260306,-500.0,0.00014191,2]
[353319460,1739758260316,-500.0,0.00014191,2]
[353319461,1739758260326,-500.0,0.00014191,2]
[353319462,1739758260335,-534.48993385,0.00014191,2]
[353319463,1739758260345,-500.0,0.00014191,2]
[353319464,1739758260354,-168.663138,0.00014191,2]
[353319465,1739758260364,-500.0,0.00014191,2]
[353319466,1739758260374,-168.663138,0.00014191,2]
[353319467,1739758260383,-1135.601013,0.00014191,2]
[353319468,1739758260394,-1135.601013,0.00014191,2]
[353319469,1739758260404,-500.0,0.00014191,2]
[353319470,1739758260413,-500.0,0.00014191,2]
[353319471,1739758260423,-500.0,0.00014191,2]
[353319472,1739758260432,-757.22,0.00014191,2]
[353319473,1739758260442,-500.0,0.00014191,2]
[353319474,1739758260452,-500.0,0.00014191,2]
[353319475,1739758260461,-500.0,0.00014191,2]
[353319476,1739758260475,-500.0,0.00014191,2]
[353319477,1739758260487,-155.62627008,0.00014191,2]
[353319478,1739758260497,-554.01,0.00014191,2]
[353319479,1739758260508,-500.0,0.00014191,2]
[353319480,1739758260517,-500.0,0.00014191,2]
[353319481,1739758260527,-685.51,0.00014191,2]
[353319482,1739758260536,-552.47,0.00014191,2]
[353319483,1739758260547,-507.48,0.00014191,2]
[353319484,1739758260556,-1785.37,0.00014191,2]
[353319485,1739758260565,-500.0,0.00014191,2]
[353319486,1739758260575,-728.56,0.00014191,2]
[353319487,1739758260585,-500.0,0.00014191,2]
[353319488,1739758260595,-500.0,0.00014191,2]
[353319489,1739758260605,-500.0,0.00014191,2]
[353319490,1739758260615,-500.0,0.00014191,2]
[353319491,1739758260625,-585.19,0.00014191,2]
[353319492,1739758260635,-787.49,0.00014191,2]
[353319493,1739758260645,-500.0,0.00014191,2]
[353319494,1739758260654,-500.0,0.00014191,2]
[353319495,1739758260664,-500.0,0.00014191,2]
[353319496,1739758260674,-844.7,0.00014191,2]
[353319497,1739758260684,-500.0,0.00014191,2]
[353319498,1739758260694,-500.0,0.00014191,2]
[353319499,1739758260704,-500.0,0.00014191,2]
[353319500,1739758260713,-520.02,0.00014191,2]
[353319501,1739758260723,-906.39,0.00014191,2]
[353319502,1739758260732,-500.0,0.00014191,2]
[353319503,1739758260741,-500.0,0.00014191,2]
[353319504,1739758260751,-500.0,0.00014191,2]
[353319505,1739758260760,-1256.67,0.00014191,2]
[353319506,1739758260770,-643.41,0.00014191,2]
[353319507,1739758260780,-500.0,0.00014191,2]
[353319508,1739758260790,-518.25,0.00014191,2]
[353319509,1739758260802,-569.03,0.00014191,2]
[353319510,1739758260812,-631.14679918,0.00014191,2]
[353319511,1739758260821,-596.73125305,0.00014191,2]
[353319512,1739758260831,-500.0,0.00014191,2]
[353319513,1739758260840,-798.89,0.00014191,2]
[353319514,1739758260850,-500.0,0.00014191,2]
[353319515,1739758260859,-500.0,0.00014191,2]
[353319516,1739758260869,-581.06,0.00014191,2]
[353319517,1739758260879,-500.0,0.00014191,2]
[353319518,1739758260890,-500.0,0.00014191,2]
[353319519,1739758260904,-413.52362231,0.00014191,2]
[353319520,1739758260920,-663.28,0.00014191,2]
[353319521,1739758260934,-500.0,0.00014191,2]
[353319522,1739758260948,-500.0,0.00014191,2]
[353319523,1739758260962,-500.0,0.00014191,2]
[353319524,1739758260977,-500.0,0.00014191,2]
[353319525,1739758260992,-783.36,0.00014191,2]
[353319526,1739758261006,-500.0,0.00014191,2]
[353319527,1739758261017,-500.0,0.00014191,2]
[353319528,1739758261031,-768.72,0.00014191,2]
[353319529,1739758261046,-500.0,0.00014191,2]
[353319530,1739758261061,-500.0,0.00014191,2]
[353319531,1739758261075,-500.0,0.00014191,2]
[353319532,1739758261089,-500.0,0.00014191,2]
[353319533,1739758261104,-500.0,0.00014191,2]
[353319534,1739758261117,-500.0,0.00014191,2]
[353319535,1739758261131,-500.0,0.00014191,2]
[353319536,1739758261145,-500.0,0.00014191,2]
[353319537,1739758261159,-500.0,0.00014191,2]
[353319538,1739758261174,-500.0,0.00014191,2]
[353319539,1739758261187,-500.0,0.00014191,2]
[353319540,1739758261201,-622.66,0.00014191,2]
[353319541,1739758261216,-500.0,0.00014191,2]
[353319542,1739758261231,-500.0,0.00014191,2]
[353319543,1739758261245,-500.0,0.00014191,2]
[353319544,1739758261255,-509.66,0.00014191,2]
[353319545,1739758261267,-500.0,0.00014191,2]
[353319546,1739758261284,-500.0,0.00014191,2]
[353319547,1739758261296,-500.0,0.00014191,2]
[353319548,1739758261307,-332.9044608,0.00014191,2]
[353319549,1739758261319,-500.0,0.00014191,2]
[353319550,1739758261334,-620.1,0.00014191,2]
[353319551,1739758261348,-150.0,0.00014193,2]
[353319552,1739758261360,-150.0,0.00014195,2]
[353319553,1739758261372,-150.0,0.00014195,2]
[353319554,1739758261384,-747.0,0.000142,2]
[353319555,1739758261397,-693.0,0.000142,2]
[353319556,1739758261410,-150.0,0.00014221,2]
[353319557,1739758261422,-1012.14355145,0.00014223,2]
[353319558,1739758261435,-150.0,0.00014242,2]
[353319559,1739758261447,-1000.0,0.00014246,3]
[353319560,1739758261461,-1000.0,0.00014247,2]
[353319561,1739758261473,-500.0,0.00014247,7]
[353319562,1739758261489,-150.0,0.00014253,2]
[353319563,1739758261502,-150.0,0.00014254,2]
[353319564,1739758261514,-9705.01671162,0.00014256,2]
[353319565,1739758261526,-321.343028,0.00014256,2]
[353319566,1739758261538,-321.343028,0.00014256,2]
[353319567,1739758261552,-302.716736,0.00014256,2]
[353319568,1739758261566,-230.421497,0.00014256,2]
[353319569,1739758261579,-302.716739,0.00014256,2]
[353319570,1739758261592,-230.421495,0.00014256,2]
[353319571,1739758261605,-151.0,0.00014256,2]
[353319572,1739758261617,-151.0,0.00014256,2]
[353319573,1739758261630,-150.0,0.00014257,2]
[353319574,1739758261642,-1000.0,0.00014262,2]
[353319575,1739758261654,-2700.6778171,0.00014263,2]
[353319576,1739758261665,-151.0,0.00014263,2]
[353319577,1739758261678,-196.146383,0.00014263,2]
[353319578,1739758261690,-196.146383,0.00014263,2]
[353319579,1739758261701,-150.0,0.00014266,2]
[353319580,1739758261713,-150.0,0.00014267,2]
[353319581,1739758261725,-300.0,0.00014272,2]
[353319582,1739758261736,-1000.0,0.00014272,2]
[353319583,1739758261748,-151.0,0.00014273,2]
[353319584,1739758261761,-151.16879,0.00014273,2]
[353319585,1739758261773,-151.0,0.00014273,2]
[353319586,1739758261786,-232.592084,0.00014273,2]
[353319587,1739758261799,-232.592084,0.00014273,2]
[353319588,1739758261811,-151.0,0.00014273,2]
[353319589,1739758261823,-323.015556,0.00014273,2]
[353319590,1739758261835,-192.419027,0.00014273,2]
[353319591,1739758261847,-323.015556,0.00014273,2]
[353319592,1739758261859,-253.050725,0.00014273,2]
[353319593,1739758261871,-253.050725,0.00014273,2]
[353319594,1739758261884,-151.0,0.00014273,2]
[353319595,1739758261896,-151.0,0.00014273,2]
[353319596,1739758261908,-586.38,0.00014273,2]
[353319597,1739758261920,-316.29057205,0.00014273,2]
[353319598,1739758261932,-2372.06,0.00014273,2]
[353319599,1739758261948,-500.0,0.00014273,2]
[353319600,1739758261960,-500.0,0.00014273,2]
[353319601,1739758261972,-500.0,0.00014273,2]
[353319602,1739758261984,-500.0,0.00014273,2]
[353319603,1739758261995,-500.0,0.00014273,2]
[353319604,1739758262007,-500.0,0.00014273,2]
[353319605,1739758262019,-257.346698,0.00014273,2]
[353319606,1739758262031,-257.346701,0.00014273,2]
[353319607,1739758262043,-553.65,0.00014273,2]
[353319608,1739758262057,-500.0,0.00014273,2]
[353319609,1739758262069,-500.0,0.00014273,2]
[353319610,1739758262080,-500.0,0.00014273,2]
[353319611,1739758262093,-500.0,0.00014273,2]
[353319612,1739758262104,-500.0,0.00014273,2]
[353319613,1739758262116,-500.0,0.00014273,2]
[353319614,1739758262129,-500.0,0.00014273,2]
[353319615,1739758262141,-500.0,0.00014273,2]
[353319616,1739758262152,-500.0,0.00014273,2]
[353319617,1739758262164,-500.0,0.00014273,2]
[353319618,1739758262175,-324.951276,0.00014273,2]
[353319619,1739758262188,-324.951274,0.00014273,2]
[353319620,1739758262199,-500.0,0.00014273,2]
[353319621,1739758262211,-194.375824,0.00014273,2]
[353319622,1739758262223,-194.375827,0.00014273,2]
[353319623,1739758262234,-500.0,0.00014273,2]
[353319624,1739758262246,-10000.0,0.00014273,2]
[353319625,1739758262258,-500.0,0.00014273,2]
[353319626,1739758262269,-10000.0,0.00014273,2]
[353319627,1739758262281,-500.0,0.00014273,2]
[353319628,1739758262293,-162.006515,0.00014273,2]
[353319629,1739758262304,-320.79914931,0.00014273,2]
[353319630,1739758262317,-757.22,0.00014273,2]
[353319631,1739758262329,-500.0,0.00014273,2]
[353319632,1739758262340,-500.0,0.00014273,2]
[353319633,1739758262352,-213.86134351,0.00014273,2]
[353319634,1739758262366,-500.0,0.00014273,2]
[353319635,1739758262378,-554.01,0.00014273,2]
[353319636,1739758262390,-500.0,0.00014273,2]
[353319637,1739758262402,-236.673984,0.00014273,2]
[353319638,1739758262414,-191.939212,0.00014273,2]
[353319639,1739758262426,-236.673984,0.00014273,2]
[353319640,1739758262439,-567.96198945,0.00014273,2]
[353319641,1739758262452,-685.51,0.00014273,2]
[353319642,1739758262464,-552.47,0.00014273,2]
[353319643,1739758262477,-191.939212,0.00014273,2]
[353319644,1739758262493,-507.48,0.00014273,2]
[353319645,1739758262681,-1785.37,0.00014273,2]
[353319646,1739758262705,-500.0,0.00014273,2]
[353319647,1739758262715,-728.56,0.00014273,2]
[353319648,1739758262724,-500.0,0.00014273,2]
[353319649,1739758262733,-500.0,0.00014273,2]
[353319650,1739758262742,-500.0,0.00014273,2]
[353319651,1739758262752,-500.0,0.00014273,2]
[353319652,1739758262761,-585.19,0.00014273,2]
[353319653,1739758262770,-787.49,0.00014273,2]
[353319654,1739758262780,-500.0,0.00014273,2]
[353319655,1739758262790,-500.0,0.00014273,2]
[353319656,1739758262802,-500.0,0.00014273,2]
[353319657,1739758262811,-844.7,0.00014273,2]
[353319658,1739758262821,-500.0,0.00014273,2]
[353319659,1739758262830,-500.0,0.00014273,2]
[353319660,1739758262839,-500.0,0.00014273,2]
[353319661,1739758262848,-520.02,0.00014273,2]
[353319662,1739758262858,-906.39,0.00014273,2]
[353319663,1739758262868,-500.0,0.00014273,2]
[353319664,1739758262879,-500.0,0.00014273,2]
[353319665,1739758262889,-500.0,0.00014273,2]
[353319666,1739758262898,-1256.67,0.00014273,2]
[353319667,1739758262907,-643.41,0.00014273,2]
[353319668,1739758262918,-500.0,0.00014273,2]
[353319669,1739758262928,-518.25,0.00014273,2]
[353319670,1739758262938,-569.03,0.00014273,2]
[353319671,1739758262947,-500.0,0.00014273,2]
[353319672,1739758262958,-798.89,0.00014273,2]
[353319673,1739758262968,-500.0,0.00014273,2]
[353319674,1739758262977,-500.0,0.00014273,2]
[353319675,1739758262987,-581.06,0.00014273,2]
[353319676,1739758262996,-500.0,0.00014273,2]
[353319677,1739758263006,-500.0,0.00014273,2]
[353319678,1739758263016,-663.28,0.00014273,2]
[353319679,1739758263026,-500.0,0.00014273,2]
[353319680,1739758263036,-500.0,0.00014273,2]
[353319681,1739758263047,-500.0,0.00014273,2]
[353319682,1739758263058,-500.0,0.00014273,2]
[353319683,1739758263068,-783.36,0.00014273,2]
[353319684,1739758263078,-500.0,0.00014273,2]
[353319685,1739758263088,-500.0,0.00014273,2]
[353319686,1739758263099,-768.72,0.00014273,2]
[353319687,1739758263109,-500.0,0.00014273,2]
[353319688,1739758263119,-500.0,0.00014273,2]
[353319689,1739758263129,-500.0,0.00014273,2]
[353319690,1739758263140,-500.0,0.00014273,2]
[353319691,1739758263150,-500.0,0.00014273,2]
[353319692,1739758263160,-500.0,0.00014273,2]
[353319693,1739758263171,-500.0,0.00014273,2]
[353319694,1739758263181,-198.35069,0.00014273,2]
[353319695,1739758263192,-496.66927768,0.00014273,2]
[353319696,1739758263202,-500.0,0.00014273,2]
[353319697,1739758263212,-198.35069,0.00014273,2]
[353319698,1739758263224,-500.0,0.00014273,2]
[353319699,1739758263234,-500.0,0.00014273,2]
[353319700,1739758263245,-622.66,0.00014273,2]
[353319701,1739758263256,-500.0,0.00014273,2]
[353319702,1739758263266,-500.0,0.00014273,2]
[353319703,1739758263277,-500.0,0.00014273,2]
[353319704,1739758263287,-509.66,0.00014273,2]
[353319705,1739758263300,-500.0,0.00014273,2]
[353319706,1739758263310,-500.0,0.00014273,2]
[353319707,1739758263321,-500.0,0.00014273,2]
[353319708,1739758263331,-500.0,0.00014273,2]
[353319709,1739758263340,-620.1,0.00014273,2]
[353319710,1739758263351,-150.0,0.00014276,2]
[353319711,1739758263362,-150.0,0.00014294,2]
[353319712,1739758263372,-979.5,0.000143,2]
[353319713,1739758263382,-367.0,0.000143,2]
[353319714,1739758263393,-150.0,0.00014313,2]
[353319715,1739758263403,-1000.0,0.00014318,2]
[353319716,1739758263413,-500.0,0.00014328,2]
[353319717,1739758263423,-150.0,0.00014334,2]
[353319718,1739758263433,-2088.411637,0.00014344,2]
[353319719,1739758263443,-2088.411637,0.00014344,2]
[353319720,1739758263453,-151.499512,0.00014344,2]
[353319721,1739758263464,-1311.362731,0.00014344,2]
[353319722,1739758263475,-150.0,0.00014345,2]
[353319723,1739758263491,-713.95692188,0.00014355,2]
[353319724,1739758263501,-500.0,0.00014355,2]
[353319725,1739758263511,-151.0,0.00014356,2]
[353319726,1739758263522,-151.0,0.00014356,2]
[353319727,1739758263532,-232.592084,0.00014356,2]
[353319728,1739758263545,-232.592077,0.00014356,2]
[353319729,1739758263556,-321.343028,0.00014356,2]
[353319730,1739758263567,-321.343028,0.00014356,2]
[353319731,1739758263578,-151.0,0.00014356,2]
[353319732,1739758263588,-894.397479,0.00014356,2]
[353319733,1739758263598,-894.397479,0.00014356,2]
[353319734,1739758263607,-249.181192,0.00014356,2]
[353319735,1739758263617,-586.38,0.00014356,2]
[353319736,1739758263626,-500.0,0.00014356,2]
[353319737,1739758263635,-500.0,0.00014356,2]
[353319738,1739758263645,-500.0,0.00014356,2]
[353319739,1739758263654,-500.0,0.00014356,2]
[353319740,1739758263664,-500.0,0.00014356,2]
[353319741,1739758263673,-500.0,0.00014356,2]
[353319742,1739758263683,-553.65,0.00014356,2]
[353319743,1739758263692,-500.0,0.00014356,2]
[353319744,1739758263701,-648.9734512,0.00014356,2]
[353319745,1739758263711,-613.57024766,0.00014356,2]
[353319746,1739758263720,-500.0,0.00014356,2]
[353319747,1739758263729,-500.0,0.00014356,2]
[353319748,1739758263739,-500.0,0.00014356,2]
[353319749,1739758263748,-500.0,0.00014356,2]
[353319750,1739758263758,-500.0,0.00014356,2]
[353319751,1739758263767,-500.0,0.00014356,2]
[353319752,1739758263776,-500.0,0.00014356,2]
[353319753,1739758263786,-500.0,0.00014356,2]
[353319754,1739758263795,-168.663138,0.00014356,2]
[353319755,1739758263805,-500.0,0.00014356,2]
[353319756,1739758263814,-168.663145,0.00014356,2]
[353319757,1739758263824,-1135.601013,0.00014356,2]
[353319758,1739758263833,-1135.601004,0.00014356,2]
[353319759,1739758263843,-500.0,0.00014356,2]
[353319760,1739758263852,-500.0,0.00014356,2]
[353319761,1739758263862,-757.22,0.00014356,2]
[353319762,1739758263871,-500.0,0.00014356,2]
[353319763,1739758263881,-198.78504748,0.00014356,2]
[353319764,1739758263890,-500.0,0.00014356,2]
[353319765,1739758263899,-554.01,0.00014356,2]
[353319766,1739758263909,-500.0,0.00014356,2]
[353319767,1739758263918,-685.51,0.00014356,2]
[353319768,1739758263928,-552.47,0.00014356,2]
[353319769,1739758263938,-507.48,0.00014356,2]
[353319770,1739758263948,-1785.37,0.00014356,2]
[353319771,1739758263958,-500.0,0.00014356,2]
[353319772,1739758263968,-728.56,0.00014356,2]
[353319773,1739758263978,-500.0,0.00014356,2]
[353319774,1739758263987,-500.0,0.00014356,2]
[353319775,1739758263997,-488.10186666,0.00014356,2]
[353319776,1739758264007,-500.0,0.00014356,2]
[353319777,1739758264017,-585.19,0.00014356,2]
[353319778,1739758264027,-787.49,0.00014356,2]
[353319779,1739758264037,-500.0,0.00014356,2]
[353319780,1739758264048,-500.0,0.00014356,2]
[353319781,1739758264058,-500.0,0.00014356,2]
[353319782,1739758264068,-844.7,0.00014356,2]
[353319783,1739758264078,-347.61688064,0.00014356,2]
[353319784,1739758264088,-500.0,0.00014356,2]
[353319785,1739758264098,-500.0,0.00014356,2]
[353319786,1739758264109,-520.02,0.00014356,2]
[353319787,1739758264118,-906.39,0.00014356,2]
[353319788,1739758264127,-218.58394829,0.00014356,2]
[353319789,1739758264137,-500.0,0.00014356,2]
[353319790,1739758264146,-500.0,0.00014356,2]
[353319791,1739758264156,-1256.67,0.00014356,2]
[353319792,1739758264165,-643.41,0.00014356,2]
[353319793,1739758264176,-500.0,0.00014356,2]
[353319794,1739758264187,-518.25,0.00014356,2]
[353319795,1739758264196,-569.03,0.00014356,2]
[353319796,1739758264206,-500.0,0.00014356,2]
[353319797,1739758264215,-798.89,0.00014356,2]
[353319798,1739758264225,-500.0,0.00014356,2]
[353319799,1739758264235,-500.0,0.00014356,2]
[353319800,1739758264245,-581.06,0.00014356,2]
[353319801,1739758264255,-500.0,0.00014356,2]
[353319802,1739758264264,-500.0,0.00014356,2]
[353319803,1739758264273,-663.28,0.00014356,2]
[353319804,1739758264282,-500.0,0.00014356,2]
[353319805,1739758264292,-500.0,0.00014356,2]
[353319806,1739758264302,-618.38492597,0.00014356,2]
[353319807,1739758264313,-500.0,0.00014356,2]
[353319808,1739758264323,-783.36,0.00014356,2]
[353319809,1739758264332,-393.6410365,0.00014356,2]
[353319810,1739758264342,-500.0,0.00014356,2]
[353319811,1739758264352,-768.72,0.00014356,2]
[353319812,1739758264362,-500.0,0.00014356,2]
[353319813,1739758264372,-500.0,0.00014356,2]
[353319814,1739758264381,-500.0,0.00014356,2]
[353319815,1739758264391,-500.0,0.00014356,2]
[353319816,1739758264401,-500.0,0.00014356,2]
[353319817,1739758264411,-500.0,0.00014356,2]
[353319818,1739758264421,-500.0,0.00014356,2]
[353319819,1739758264430,-500.0,0.00014356,2]
[353319820,1739758264441,-500.0,0.00014356,2]
[353319821,1739758264451,-500.0,0.00014356,2]
[353319822,1739758264460,-622.66,0.00014356,2]
[353319823,1739758264471,-500.0,0.00014356,2]
[353319824,1739758264484,-500.0,0.00014356,2]
[353319825,1739758264493,-500.0,0.00014356,2]
[353319826,1739758264503,-509.66,0.00014356,2]
[353319827,1739758264512,-500.0,0.00014356,2]
[353319828,1739758264522,-500.0,0.00014356,2]
[353319829,1739758264532,-500.0,0.00014356,2]
[353319830,1739758264541,-500.0,0.00014356,2]
[353319831,1739758264554,-620.1,0.00014356,2]
[353319832,1739758264564,-1000.0,0.00014362,2]
[353319833,1739758264573,-150.0,0.00014368,2]
[353319834,1739758264582,-150.0,0.00014373,2]
[353319835,1739758264592,-1000.0,0.00014378,2]
[353319836,1739758264601,-150.0,0.0001438,2]
[353319837,1739758264611,-150.0,0.00014382,2]
[353319838,1739758264620,-150.0,0.00014394,2]
[353319839,1739758264631,-1000.0,0.00014397,2]
[353319840,1739758264640,-435.47769845,0.000144,2]
[353319841,1739758264650,-1674.0,0.000144,2]
[353319842,1739758264659,-2372.06,0.0001441,2]
[353319843,1739758264669,-1000.0,0.00014429,2]
[353319844,1739758264679,-150.0,0.00014433,2]
[353319845,1739758264689,-150.0,0.00014435,2]
[353319846,1739758264698,-538.0,0.00014436,2]
[353319847,1739758264708,-151.0,0.00014436,2]
[353319848,1739758264717,-196.146383,0.00014436,2]
[353319849,1739758264727,-196.146383,0.00014436,2]
[353319850,1739758264737,-323.015556,0.00014438,2]
[353319851,1739758264747,-323.015556,0.00014438,2]
[353319852,1739758264756,-253.050725,0.00014438,2]
[353319853,1739758264765,-253.050725,0.00014438,2]
[353319854,1739758264774,-151.478609,0.00014438,2]
[353319855,1739758264784,-151.0,0.00014438,2]
[353319856,1739758264793,-586.38,0.00014438,2]
[353319857,1739758264804,-465.00256563,0.00014438,2]
[353319858,1739758264813,-500.0,0.00014438,2]
[353319859,1739758264822,-500.0,0.00014438,2]
[353319860,1739758264831,-500.0,0.00014438,2]
[353319861,1739758264840,-500.0,0.00014438,2]
[353319862,1739758264849,-500.0,0.00014438,2]
[353319863,1739758264858,-553.65,0.00014438,2]
[353319864,1739758264867,-500.0,0.00014438,2]
[353319865,1739758264877,-500.0,0.00014438,2]
[353319866,1739758264886,-229.88196299,0.00014438,2]
[353319867,1739758264896,-500.0,0.00014438,2]
[353319868,1739758264906,-500.0,0.00014438,2]
[353319869,1739758264915,-500.0,0.00014438,2]
[353319870,1739758264924,-500.0,0.00014438,2]
[353319871,1739758264934,-500.0,0.00014438,2]
[353319872,1739758264943,-500.0,0.00014438,2]
[353319873,1739758264953,-500.0,0.00014438,2]
[353319874,1739758264962,-500.0,0.00014438,2]